bitfinex/quotes_SOLUSD_20240917
["timestamp","ask_amount","ask_price","bid_price","bid_amount"]
[1726587601884,7.4019,135.1,135.06,57.4039]
[1726587602279,7.4026,135.09,135.06,50.0]
[1726587602886,7.4026,135.09,135.05,25.9161]
[1726587603065,7.4031,135.08,135.05,18.5116]
[1726587603567,26.15068417,135.13,135.06,50.0]
[1726587603892,7.402,135.1,135.06,57.4039]
[1726587604699,7.402,135.1,135.07,7.4034]
[1726587604871,7.402,135.1,135.06,57.4038]
[1726587605603,7.4015,135.11,135.07,7.4035]
[1726587605778,7.4009,135.12,135.08,57.4027]
[1726587606179,7.4009,135.12,135.08,75.9101]
[1726587606379,7.6022357,135.13,135.09,7.4022]
[1726587607876,7.6022357,135.13,135.1,7.4018]
[1726587608080,7.6022357,135.13,135.09,7.4022]
[1726587608610,7.4022,135.1,135.08,71.877]
[1726587608901,7.4011,135.12,135.08,71.877]
[1726587609280,7.6022357,135.13,135.09,18.5057]
[1726587609478,7.6022357,135.13,135.09,25.908]
[1726587610301,0.2018357,135.13,135.09,18.5057]
[1726587610483,0.2018357,135.13,135.1,57.4018]
[1726587611288,0.2018357,135.13,135.11,7.4013]
[1726587611607,0.2018357,135.13,135.12,50.0]
[1726587611815,0.2018357,135.13,135.09,50.0]
[1726587611980,7.6022357,135.13,135.09,57.4023]
[1726587612407,0.2018357,135.13,135.1,7.4019]
[1726587612589,7.4013,135.12,135.09,50.0]
[1726587612785,0.2018357,135.13,135.09,50.0]
[1726587613009,7.6022357,135.13,135.1,7.4018]
[1726587614115,7.6022357,135.13,135.09,57.4023]
[1726587615793,7.6022357,135.13,135.1,7.4019]
[1726587617503,0.2018357,135.13,135.11,57.4012]
[1726587619196,0.2018357,135.13,135.1,25.9059]
[1726587620527,0.2018357,135.13,135.12,50.0]
[1726587621018,0.2018357,135.13,135.1,75.9059]
[1726587624422,0.2018357,135.13,135.12,7.4008]
[1726587624621,0.2018357,135.13,135.11,7.4012]
[1726587624796,0.2018357,135.13,135.1,75.9059]
[1726587632004,7.6020357,135.13,135.1,68.5042]
[1726587632538,7.401,135.12,135.08,47.7872]
[1726587632730,0.12549,135.12,135.05,68.511]
[1726587632905,7.402,135.1,135.05,75.9155]
[1726587633110,7.4026,135.09,135.05,75.9155]
[1726587633410,7.4026,135.09,135.05,68.511]
[1726587633737,7.4031,135.08,135.05,68.511]
[1726587634236,7.4025,135.09,135.05,68.511]
[1726587634616,0.12549,135.12,135.05,68.511]
[1726587634810,7.4017,135.11,135.06,7.4036]
[1726587635011,0.12549,135.12,135.05,68.511]
[1726587635533,7.4015,135.11,135.07,57.4034]
[1726587635834,0.2018357,135.13,135.09,57.4023]
[1726587636039,7.6024357,135.13,135.09,50.0]
[1726587637032,7.6024357,135.13,135.09,57.4024]
[1726587637223,0.2018357,135.13,135.09,57.4024]
[1726587637424,0.2018357,135.13,135.1,1.47893387]
[1726587637642,0.2018357,135.13,135.11,1.4788244]
[1726587637817,0.2018357,135.13,135.09,57.4024]
[1726587638415,0.2018357,135.13,135.11,50.0]
[1726587639219,0.2018357,135.13,135.1,7.4017]
[1726587639446,0.2018357,135.13,135.09,75.908]
[1726587639816,7.6021357,135.13,135.09,75.908]
[1726587640022,0.2018357,135.13,135.06,25.9133]
[1726587640217,0.2018357,135.13,135.07,50.0]
[1726587640448,7.402,135.1,135.06,25.9133]
[1726587640741,7.402,135.1,135.07,50.0]
[1726587641439,7.402,135.1,135.06,25.9133]
[1726587641943,7.402,135.1,135.07,50.0]
[1726587642315,7.4008,135.12,135.07,50.0]
[1726587642733,0.2018357,135.13,135.07,50.0]
[1726587642734,7.4014,135.11,135.07,50.0]
[1726587644043,7.4009,135.12,135.07,50.0]
[1726587644253,7.4009,135.12,135.07,57.4033]
[1726587645144,7.4009,135.12,135.09,50.0]
[1726587645344,0.2018357,135.13,135.09,57.402]
[1726587645735,0.2018357,135.13,135.11,50.0]
[1726587646142,0.2018357,135.13,135.1,7.4018]
[1726587646334,0.2018357,135.13,135.11,50.0]
[1726587646654,0.2018357,135.13,135.12,7.4008]
[1726587646857,0.2018357,135.13,135.11,57.4011]
[1726587648434,0.2018357,135.13,135.11,50.0]
[1726587649134,0.2018357,135.13,135.12,7.4008]
[1726587649633,0.2018357,135.13,135.11,57.4012]
[1726587649942,0.2018357,135.13,135.11,50.0]
[1726587651033,0.2018357,135.13,135.11,57.4012]
[1726587651253,7.6024357,135.13,135.1,50.0]
[1726587651434,7.6024357,135.13,135.1,57.4015]
[1726587651435,0.2018357,135.13,135.1,57.4015]
[1726587651935,0.2018357,135.13,135.11,7.4013]
[1726587653343,0.2018357,135.13,135.12,50.0]
[1726587654253,0.2018357,135.13,135.12,57.4008]
[1726587654734,0.2018357,135.13,135.11,18.5032]
[1726587655265,7.6020357,135.13,135.1,50.0]
[1726587655444,0.2018357,135.13,135.1,68.5045]
[1726587655648,0.2018357,135.13,135.12,7.4008]
[1726587656153,0.2018357,135.13,135.1,68.5045]
[1726587656154,0.2018357,135.13,135.11,7.4011]
[1726587656351,0.2018357,135.13,135.12,50.0]
[1726587657568,7.6021357,135.13,135.1,18.5045]
[1726587657933,7.4009,135.12,135.09,22.399]
[1726587658239,0.2018357,135.13,135.08,57.4027]
[1726587658240,7.4013,135.11,135.08,57.4027]
[1726587658449,7.4013,135.11,135.07,25.911]
[1726587658648,7.4013,135.11,135.08,50.0]
[1726587660360,7.4013,135.11,135.08,57.4029]
[1726587660538,0.2018357,135.13,135.09,7.4023]
[1726587660955,0.2018357,135.13,135.1,57.4018]
[1726587661149,0.2018357,135.13,135.1,50.0]
[1726587661457,0.2018357,135.13,135.08,57.4027]
[1726587661654,0.2018357,135.13,135.09,7.4021]
[1726587661858,0.2018357,135.13,135.1,50.0]
[1726587662040,0.2018357,135.13,135.1,57.4014]
[1726587662236,7.6020357,135.13,135.1,50.0]
[1726587662440,7.4012,135.12,135.08,75.9098]
[1726587662642,7.6021357,135.13,135.09,7.4021]
[1726587662839,0.2018357,135.13,135.08,50.0]
[1726587663042,0.2018357,135.13,135.11,50.0]
[1726587663252,7.6023357,135.13,135.1,18.5044]
[1726587664364,7.6023357,135.13,135.11,1.48007043]
[1726587664568,7.6023357,135.13,135.1,25.9063]
[1726587664745,0.2018357,135.13,135.1,25.9063]
[1726587664950,0.2018357,135.13,135.11,57.4013]
[1726587667465,0.2018357,135.13,135.12,25.9028]
[1726587670941,0.2018357,135.13,135.12,18.502]
[1726587672162,0.2018357,135.13,135.12,25.9028]
[1726587672466,0.2018357,135.13,135.12,18.502]
[1726587673861,0.2018357,135.13,135.11,79.4284]
[1726587674749,0.2018357,135.13,135.09,68.5051]
[1726587675067,7.4011,135.12,135.09,75.9075]
[1726587675269,0.2018357,135.13,135.09,75.9075]
[1726587675489,0.2018357,135.13,135.11,68.5032]
[1726587675651,0.2018357,135.13,135.12,7.4008]
[1726587676564,0.2018357,135.13,135.11,75.9044]
[1726587682176,0.2018357,135.13,135.12,7.4008]
[1726587683381,0.2018357,135.13,135.11,68.5032]
[1726587684368,0.2018357,135.13,135.11,75.9045]
[1726587685877,0.2018357,135.13,135.11,74.9045]
[1726587686251,0.2018357,135.13,135.11,67.5032]
[1726587688573,7.403,135.08,135.05,50.0]
[1726587688891,7.403,135.08,135.04,7.4049]
[1726587689201,0.12549,135.12,135.03,80.2495369]
[1726587689202,7.4035,135.07,135.03,80.2495369]
[1726587689782,7.4031,135.08,135.04,7.4051]
[1726587691488,30.61660572,135.13,135.06,7.4041]
[1726587691489,7.402,135.1,135.06,7.4041]
[1726587691796,7.4009,135.12,135.08,7.4028]
[1726587691981,7.4014,135.11,135.07,57.403]
[1726587692388,7.4009,135.12,135.07,50.0]
[1726587692589,7.4009,135.12,135.08,7.4029]
[1726587693090,7.4009,135.12,135.08,30.2699]
[1726587693278,7.6022357,135.13,135.09,57.4024]
[1726587693479,0.2018357,135.13,135.1,7.4019]
[1726587693682,0.2018357,135.13,135.11,50.0]
[1726587693886,7.6021357,135.13,135.11,50.0]
[1726587694090,7.6021357,135.13,135.09,7.4023]
[1726587695479,7.4012,135.12,135.08,98.7773]
[1726587695808,7.6021357,135.13,135.09,7.4023]
[1726587697702,0.2018357,135.13,135.1,68.5045]
[1726587697888,0.2018357,135.13,135.12,50.0]
[1726587698195,0.2018357,135.13,135.11,7.4008]
[1726587698576,0.2018357,135.13,135.12,57.4008]
[1726587699101,0.2018357,135.13,135.1,68.5045]
[1726587699287,0.2018357,135.13,135.12,50.0]
[1726587699683,0.2018357,135.13,135.1,75.9062]
[1726587700703,7.6021357,135.13,135.09,7.4024]
[1726587701507,0.2018357,135.13,135.08,22.867]
[1726587701720,7.4017,135.11,135.07,25.9113]
[1726587702086,7.402,135.1,135.07,18.5079]
[1726587702608,7.4015,135.11,135.07,25.9114]
[1726587702909,7.4009,135.12,135.08,57.4028]
[1726587703206,7.4014,135.11,135.07,25.9113]
[1726587703407,7.4015,135.11,135.07,25.9113]
[1726587704009,7.4012,135.12,135.08,57.4028]
[1726587704178,7.4021,135.1,135.07,18.5079]
[1726587705088,7.4014,135.11,135.07,25.9113]
[1726587705287,7.4019,135.1,135.07,25.9113]
[1726587706181,7.4016,135.11,135.07,25.9113]
[1726587706613,7.4023,135.1,135.06,50.0]
[1726587706783,7.4023,135.1,135.06,57.4036]
[1726587707479,7.4027,135.09,135.06,68.5102]
[1726587707676,18.5035,135.11,135.05,21.3474]
[1726587707900,7.4037,135.07,135.05,21.3474]
[1726587708110,0.12549,135.1,135.05,21.3474]
[1726587708111,7.4031,135.08,135.05,21.3474]
[1726587708321,7.4025,135.09,135.06,50.0]
[1726587708501,7.4025,135.09,135.05,39.8587]
[1726587709176,7.4025,135.09,135.05,47.263]
[1726587709811,7.4025,135.09,134.95,0.2603726]
[1726587709812,44.027864,135.04,134.95,0.2603726]
[1726587710119,7.4094,134.97,134.95,0.2603726]
[1726587710287,7.4091,134.97,134.95,0.2603726]
[1726587710476,7.4086,134.98,134.95,0.2603726]
[1726587710678,20.12549,135.01,134.95,0.2603726]
[1726587710900,7.4096,134.96,134.95,0.2603726]
[1726587711316,7.4091,134.97,134.95,0.2603726]
[1726587711907,10.91546943,135.0,134.95,0.2603726]
[1726587711908,7.4096,134.96,134.95,0.2603726]
[1726587712095,7.409,134.98,134.95,0.2603726]
[1726587713079,7.408,134.99,134.95,0.2603726]
[1726587716798,7.4085,134.98,134.95,0.2603726]
[1726587716997,20.0,135.01,134.96,50.0]
[1726587717288,20.0,135.04,134.96,57.4092]
[1726587717612,20.0,135.04,134.96,50.0]
[1726587717613,7.4076,135.0,134.96,50.0]
[1726587717785,7.4081,134.99,134.96,50.0]
[1726587719088,7.4087,134.98,134.96,50.0]
[1726587722018,7.408,134.99,134.96,50.0]
[1726587724123,20.0,135.02,134.97,0.93690795]
[1726587724342,7.4066,135.02,134.98,57.4082]
[1726587724715,18.5112,135.06,134.98,50.0]
[1726587725226,49.0847125,135.09,134.98,50.0]
[1726587725227,64.53448938,135.09,134.99,16.68573845]
[1726587725430,37.2743726,135.09,134.99,15.2052]
[1726587725620,7.4061,135.03,134.99,22.613]
[1726587726932,20.0,135.03,135.0,50.0]
[1726587727123,7.4053,135.04,135.0,57.4073]
[1726587727733,7.4053,135.04,135.0,63.5108]
[1726587730830,18.5092,135.07,135.0,56.1035]
[1726587731013,7.4057,135.03,135.0,56.1035]
[1726587731328,7.4052,135.04,135.0,63.5108]
[1726587734828,7.4052,135.04,135.01,7.4068]
[1726587735043,7.4052,135.04,135.0,82.029]
[1726587735850,27.4046,135.06,135.02,50.0]
[1726587736135,27.4046,135.06,135.02,68.5156]
[1726587736316,27.4046,135.06,135.02,75.9217]
[1726587736512,7.4036,135.07,135.03,7.4055]
[1726587736926,0.2603726,135.09,135.04,75.9177]
[1726587736927,7.4031,135.08,135.04,75.9177]
[1726587737133,0.2603726,135.09,135.02,50.0]
[1726587737332,7.4043,135.06,135.02,57.4059]
[1726587739528,7.4043,135.06,135.02,50.0]
[1726587739843,7.4047,135.05,135.02,50.0]
[1726587740643,7.4047,135.05,135.01,18.5162]
[1726587741546,7.4047,135.05,135.01,25.9228]
[1726587741751,7.4042,135.06,135.02,50.0]
[1726587743225,18.5089,135.07,135.0,56.1035]
[1726587743437,7.4059,135.03,135.0,56.1035]
[1726587744140,7.4059,135.03,135.0,6.1035]
[1726587744942,7.4065,135.02,135.0,6.1035]
[1726587745143,20.25098,135.06,135.0,6.1035]
[1726587746028,7.4054,135.04,135.0,63.5108]
[1726587746431,7.4054,135.04,135.0,56.1035]
[1726587746929,7.4058,135.03,135.0,56.1035]
[1726587747849,7.4066,135.02,135.0,6.1035]
[1726587748040,7.4064,135.02,135.0,6.1035]
[1726587749851,7.4068,135.01,134.97,18.5225]
[1726587750041,7.4075,135.0,134.96,78.8475]
[1726587751245,7.407,135.01,134.96,78.8475]
[1726587751431,20.0,135.04,134.96,78.8475]
[1726587751432,7.4078,135.0,134.96,71.4382]
[1726587752833,7.408,134.99,134.96,71.4382]
[1726587753044,7.4085,134.98,134.96,21.4382]
[1726587753232,7.4081,134.99,134.96,21.4382]
[1726587753644,7.4089,134.98,134.95,0.2603726]
[1726587754048,7.4075,135.0,134.96,50.0]
[1726587754934,18.5141,135.04,134.98,57.4083]
[1726587755140,7.4066,135.02,134.98,50.0]
[1726587755335,18.5141,135.04,134.98,50.0]
[1726587755750,7.4068,135.01,134.98,50.0]
[1726587759257,7.4065,135.02,134.98,50.0]
[1726587760454,7.4069,135.01,134.98,50.0]
[1726587761035,7.4069,135.01,134.97,7.4089]
[1726587761828,7.4074,135.0,134.96,75.9331]
[1726587762538,7.407,135.01,134.97,7.4089]
[1726587763344,7.407,135.01,134.97,7.409]
[1726587763958,7.407,135.01,134.96,68.5238]
[1726587765257,7.407,135.01,134.97,7.409]
[1726587767262,7.4065,135.02,134.98,57.4084]
[1726587776447,7.4074,135.0,134.96,75.933]
[1726587776663,7.4081,134.99,134.96,68.5238]
[1726587777467,7.4076,135.0,134.96,75.9333]
[1726587778052,7.4085,134.98,134.95,7.6704726]
[1726587778468,7.4085,134.98,134.95,0.2603726]
[1726587780596,20.0,135.01,134.96,50.0]
[1726587780780,7.4077,135.0,134.96,57.4095]
[1726587781274,7.4077,135.0,134.97,1.48031347]
[1726587781674,27.4071,135.01,134.98,1.48142369]
[1726587782062,27.4071,135.01,134.97,18.5223]
[1726587782554,20.0,135.01,134.98,7.4085]
[1726587782752,18.5087,135.08,135.0,50.0]
[1726587783184,7.4063,135.02,134.98,98.5582]
[1726587783472,7.4061,135.03,134.99,7.4079]
[1726587785688,7.4063,135.02,134.98,98.5584]
[1726587785977,20.0,135.03,134.98,22.6301]
[1726587786355,7.407,135.01,134.98,22.6301]
[1726587787569,7.407,135.01,134.98,30.0385]
[1726587787964,7.4065,135.02,134.98,30.0385]
[1726587788673,7.4069,135.01,134.98,30.0385]
[1726587788987,7.4069,135.01,134.98,22.6301]
[1726587793258,7.4074,135.0,134.98,22.6301]
[1726587796075,7.4069,135.01,134.98,22.6301]
[1726587796589,7.4069,135.01,134.98,30.0385]
[1726587796882,7.4065,135.02,134.99,7.4078]
[1726587797058,0.12549,135.04,135.0,57.4073]
[1726587797059,7.4055,135.04,135.0,57.4073]
[1726587797272,7.4042,135.06,135.02,50.0]
[1726587797465,7.4042,135.06,135.03,1.48028868]
[1726587797974,7.4037,135.07,135.04,21.632]
[1726587798173,7.4042,135.06,135.04,21.632]
[1726587798377,7.4046,135.05,135.04,21.632]
[1726587799502,7.4055,135.04,135.01,18.5169]
[1726587799804,7.4055,135.04,135.0,79.0393]
[1726587800198,7.4057,135.03,135.0,21.632]
[1726587800406,7.4063,135.02,135.0,21.632]
[1726587802182,7.4068,135.01,135.0,21.632]
[1726587802515,7.4068,135.01,134.98,18.5199]
[1726587802880,7.4074,135.0,134.97,22.4869]
[1726587803806,7.407,135.01,134.97,29.8959]
[1726587804578,7.4064,135.02,134.98,7.4081]
[1726587805402,7.4071,135.01,134.97,48.4181]
[1726587805623,20.0,135.04,134.98,50.0]
[1726587807408,7.4063,135.02,134.98,57.4081]
[1726587808906,20.0,135.02,135.0,7.4073]
[1726587809389,20.0,135.03,135.0,7.4073]
[1726587809708,27.4059,135.03,134.99,25.9273]
[1726587810902,7.4064,135.02,134.99,25.9273]
[1726587812304,7.407,135.01,134.98,50.0]
[1726587812507,7.407,135.01,134.97,29.8956]
[1726587814309,20.0,135.03,134.97,29.8956]
[1726587814310,20.0,135.03,134.97,22.4869]
[1726587814526,7.408,134.99,134.97,22.4869]
[1726587814810,0.12549,135.02,134.97,22.4869]
[1726587814811,7.4076,135.0,134.97,22.4869]
[1726587818919,7.4095,134.97,134.95,0.2603726]
[1726587819095,0.12549,134.99,134.95,0.2603726]
[1726587819296,7.4092,134.97,134.95,0.2603726]
[1726587820513,7.4096,134.96,134.95,0.2603726]
[1726587825818,7.4089,134.98,134.95,0.2603726]
[1726587825993,7.4066,135.02,134.98,7.4083]
[1726587826190,7.4066,135.02,134.98,75.9294]
[1726587826424,7.4068,135.01,134.98,68.5211]
[1726587826913,18.5147,135.03,134.97,22.2]
[1726587827289,7.407,135.01,134.97,79.609]
[1726587827517,20.0,135.0,134.97,79.609]
[1726587827820,20.0,135.05,134.98,7.4085]
[1726587828019,7.4063,135.02,134.98,7.4085]
[1726587828227,20.0,135.01,134.98,7.4085]
[1726587828901,27.4069,135.01,134.97,98.1308]
[1726587831219,27.4069,135.01,134.97,98.1308]
[1726587831728,7.4064,135.02,134.97,98.1308]
[1726587831903,20.0,135.05,134.97,98.1308]
[1726587831904,20.25098,135.05,134.98,7.4084]
[1726587832794,20.25098,135.05,134.97,98.1308]
[1726587834415,7.4068,135.01,134.97,98.1308]
[1726587837619,20.25098,135.03,134.97,22.2]
[1726587837927,7.4084,134.99,134.97,22.2]
[1726587838799,7.4076,135.0,134.97,22.2]
[1726587840409,7.4071,135.01,134.98,50.0]
[1726587841300,7.4074,135.0,134.97,29.6089]
[1726587841510,7.4074,135.0,134.97,22.2]
[1726587842436,7.4072,135.01,134.97,29.6088]
[1726587842625,7.4072,135.01,134.98,50.0]
[1726587843232,7.4065,135.02,134.98,57.4085]
[1726587843542,7.407,135.01,134.98,50.0]
[1726587846343,7.4065,135.02,134.98,57.4083]
[1726587846552,7.4069,135.01,134.98,50.0]
[1726587849245,7.4074,135.0,134.98,50.0]
[1726587849947,7.4074,135.0,134.97,29.6088]
[1726587850523,7.4074,135.0,134.97,22.2]
[1726587850817,18.5148,135.03,134.97,22.2]
[1726587850818,7.4081,134.99,134.97,22.2]
[1726587851013,7.4085,134.98,134.97,22.2]
[1726587851224,7.4082,134.99,134.97,22.2]
[1726587851450,20.25098,135.02,134.97,22.2]
[1726587851451,7.4076,135.0,134.97,22.2]
[1726587851748,7.4071,135.01,134.97,29.6088]
[1726587852046,7.4071,135.01,134.97,48.1314]
[1726587852227,7.4071,135.01,134.98,57.4084]
[1726587852613,20.61183192,135.04,134.99,18.5197]
[1726587853043,7.4061,135.03,134.99,25.9274]
[1726587853547,7.4063,135.02,134.99,18.5197]
[1726587853921,7.4063,135.02,134.98,57.4083]
[1726587854126,7.4069,135.01,134.98,50.0]
[1726587855039,7.4064,135.02,134.98,50.0]
[1726587855216,7.4064,135.02,134.98,57.4084]
[1726587857253,0.12549,135.03,134.97,22.2]
[1726587857542,7.4077,135.0,134.97,22.2]
[1726587857841,7.4063,135.02,134.98,57.4082]
[1726587860343,7.4074,135.0,134.97,29.6089]
[1726587860526,0.12549,135.03,134.97,22.2]
[1726587860733,20.25098,135.03,134.97,22.2]
[1726587860930,7.4085,134.98,134.97,22.2]
[1726587861527,7.4081,134.99,134.97,22.2]
[1726587864638,7.4075,135.0,134.97,22.2]
[1726587865243,7.4081,134.99,134.97,22.2]
[1726587865537,7.4085,134.98,134.97,22.2]
[1726587867648,7.4081,134.99,134.97,22.2]
[1726587868563,7.4085,134.98,134.97,22.2]
[1726587871640,7.4085,134.98,134.95,18.7853726]
[1726587874859,7.4096,134.96,134.95,0.2603726]
[1726587875164,7.53509,134.96,134.95,0.2603726]
[1726587875344,20.25098,135.0,134.88,23.0457]
[1726587875345,30.25098,135.0,134.88,23.0457]
[1726587875545,20.25098,134.96,134.9,0.5141257]
[1726587876140,7.4123,134.91,134.9,0.5141257]
[1726587877846,7.412,134.92,134.9,0.5141257]
[1726587879750,7.4123,134.91,134.9,0.5141257]
[1726587890574,7.4139,134.88,134.87,0.2603726]
[1726587890781,7.4139,134.88,134.84,22.9869]
[1726587890782,7.4156,134.85,134.84,22.9869]
[1726587890964,7.4151,134.86,134.84,22.9869]
[1726587891780,18.09736732,134.91,134.84,22.9869]
[1726587891781,20.0,134.9,134.84,22.9869]
[1726587892078,7.4146,134.87,134.84,22.9869]
[1726587892484,7.4141,134.88,134.84,22.9869]
[1726587892652,7.4145,134.87,134.84,22.9869]
[1726587894482,7.4152,134.86,134.84,22.9869]
[1726587894978,7.4152,134.86,134.82,26.4736257]
[1726587894979,7.416,134.85,134.82,0.5141257]
[1726587895478,17.07756442,134.88,134.82,0.5141257]
[1726587895479,20.0,134.87,134.82,7.9313257]
[1726587895667,20.0,134.87,134.83,22.0975]
[1726587895981,27.4149,134.87,134.83,22.0975]
[1726587897368,7.4151,134.86,134.83,22.0975]
[1726587897568,7.4158,134.85,134.83,22.0975]
[1726587897778,20.0,134.87,134.82,0.5141257]
[1726587897964,7.4167,134.84,134.82,0.5141257]
[1726587898559,7.4167,134.83,134.82,0.5141257]
[1726587899186,27.54219,134.83,134.82,0.5141257]
[1726587899397,42.93094233,134.83,134.82,0.5141257]
[1726587904184,7.4163,134.84,134.82,0.5141257]
[1726587904380,15.46343005,134.86,134.82,0.5141257]
[1726587904780,7.4167,134.83,134.82,0.5141257]
[1726587905087,7.4163,134.84,134.82,0.5141257]
[1726587905264,7.4157,134.85,134.82,0.5141257]
[1726587906267,7.4162,134.84,134.82,0.5141257]
[1726587907305,7.4167,134.83,134.82,0.5141257]
[1726587908173,7.4162,134.84,134.82,0.5141257]
[1726587908794,7.4158,134.85,134.82,0.5141257]
[1726587909164,22.87863005,134.86,134.82,0.5141257]
[1726587910066,22.87863005,134.86,134.82,7.9312257]
[1726587910390,7.4141,134.88,134.84,7.416]
[1726587910966,7.4134,134.89,134.85,57.4155]
[1726587911294,13.51518841,134.91,134.86,30.87590423]
[1726587911295,7.413,134.9,134.86,30.87590423]
[1726587911884,7.413,134.9,134.86,23.46090423]
[1726587912095,7.4136,134.89,134.86,21.9789]
[1726587913476,13.51518841,134.91,134.86,21.9789]
[1726587913682,20.92778841,134.91,134.87,50.0]
[1726587914380,13.51518841,134.91,134.86,21.9789]
[1726587914774,7.4134,134.89,134.86,21.9789]
[1726587915602,13.51518841,134.91,134.87,50.0]
[1726587916097,20.92798841,134.91,134.87,50.0]
[1726587916689,20.92798841,134.91,134.87,57.4144]
[1726587918575,13.51518841,134.91,134.88,7.4139]
[1726587919726,20.92748841,134.91,134.87,75.9503]
[1726587919897,13.51518841,134.91,134.88,7.4139]
[1726587921197,13.51518841,134.91,134.87,75.9501]
[1726587922097,20.92748841,134.91,134.87,68.5358]
[1726587922301,20.25098,134.9,134.82,22.1066257]
[1726587922601,20.25098,134.9,134.83,50.0]
[1726587922784,20.0,134.88,134.83,50.0]
[1726587922982,7.4151,134.86,134.83,50.0]
[1726587923219,7.4158,134.85,134.83,50.0]
[1726587924283,7.4161,134.84,134.83,50.0]
[1726587930505,7.4161,134.84,134.83,50.0]
[1726587931013,7.4158,134.85,134.83,50.0]
[1726587931308,7.4154,134.86,134.83,50.0]
[1726587932703,31.91641566,134.89,134.83,50.0]
[1726587932704,7.4156,134.85,134.83,50.0]
[1726587933685,7.4161,134.84,134.83,50.0]
[1726587933910,7.4158,134.85,134.83,50.0]
[1726587934109,7.4161,134.84,134.82,22.1066257]
[1726587934406,0.12549,134.88,134.82,22.1066257]
[1726587934407,7.4167,134.83,134.82,22.1066257]
[1726587934792,7.4167,134.83,134.82,0.5141257]
[1726587938705,27.54219,134.83,134.82,0.5141257]
[1726587939385,27.4167,134.83,134.82,0.5141257]
[1726587940697,27.54219,134.83,134.82,0.5141257]
[1726587943315,27.4167,134.83,134.82,0.5141257]
[1726587943504,7.4167,134.83,134.82,0.5141257]
[1726587946118,25.9585,134.83,134.82,0.5141257]
[1726587946616,45.9585,134.83,134.82,0.5141257]
[1726587946815,45.4585,134.83,134.82,0.5141257]
[1726587947619,57.61850186,134.83,134.82,0.5141257]
[1726587947911,57.61850186,134.83,134.79,23.0278726]
[1726587947912,7.4183,134.8,134.79,0.2603726]
[1726587948300,27.4183,134.8,134.79,0.2603726]
[1726587949418,27.54379,134.8,134.79,0.2603726]
[1726587950297,27.54379,134.8,134.74,0.93210061]
[1726587950298,7.4211,134.75,134.74,0.93210061]
[1726587952315,27.4211,134.75,134.74,0.93210061]
[1726587952788,27.54659,134.75,134.74,0.93210061]
[1726587954217,27.67208,134.75,134.74,0.93210061]
[1726587958209,38.92919961,134.75,134.74,0.93210061]
[1726587959010,38.80370961,134.75,134.74,0.93210061]
[1726587959621,38.92919961,134.75,134.74,0.93210061]
[1726587960195,7.4228,134.72,134.71,0.2603726]
[1726587965316,7.4224,134.73,134.71,0.2603726]
[1726587965723,7.4218,134.74,134.71,0.2603726]
[1726587966533,7.4217,134.74,134.72,50.0]
[1726587966941,11.25711961,134.75,134.72,50.0]
[1726587967243,7.4219,134.74,134.72,50.0]
[1726587967736,11.25711961,134.75,134.72,68.5567]
[1726587968026,7.4204,134.77,134.74,50.0]
[1726587968414,7.4196,134.78,134.74,50.0]
[1726587968732,7.4191,134.79,134.74,57.4216]
[1726587968910,7.4195,134.78,134.74,57.4216]
[1726587969307,7.419,134.79,134.76,50.0]
[1726587969521,7.4185,134.8,134.76,50.0]
[1726587969730,7.419,134.79,134.76,50.0]
[1726587969933,7.4195,134.78,134.74,75.9752]